[Event "*** SCC Grand Prix: Titled Tuesday Blitz"]
[Site "Chess.com"]
[Date "2020.09.29"]
[Round "1"]
[White "tlomigtlis"]
[Black "Matols"]
[Result "0-1"]
[WhiteElo "2531"]
[BlackElo "2246"]
[TimeControl "180+1"]
[EndTime "10:06:59 PDT"]
[Termination "Matols won by checkmate"]

1. d4 {[%clk 0:03:00.9]} 1... Nf6 {[%clk 0:02:59.4]} 2. c4 {[%clk 0:03:01.2]}
2... e6 {[%clk 0:02:59.5]} 3. Nc3 {[%clk 0:03:01.5]} 3... Bb4 {[%clk 0:02:59.4]}
4. Qc2 {[%clk 0:03:01.8]} 4... O-O {[%clk 0:02:50.8]} 5. a3 {[%clk 0:03:01.8]}
5... Bxc3+ {[%clk 0:02:49.5]} 6. Qxc3 {[%clk 0:03:02.7]} 6... b6 {[%clk
0:02:47.1]} 7. Bg5 {[%clk 0:03:02.8]} 7... h6 {[%clk 0:02:44.8]} 8. Bh4 {[%clk
0:03:02.7]} 8... Bb7 {[%clk 0:02:43.8]} 9. e3 {[%clk 0:03:02.9]} 9... d5 {[%clk
0:02:20.1]} 10. Nf3 {[%clk 0:03:00.1]} 10... Nbd7 {[%clk 0:02:18.3]} 11. Be2
{[%clk 0:02:57.3]} 11... Re8 {[%clk 0:02:11.6]} 12. O-O {[%clk 0:02:55.5]} 12...
g5 {[%clk 0:02:08.9]} 13. Bg3 {[%clk 0:02:55.5]} 13... Ne4 {[%clk 0:02:07.4]}
14. Qc2 {[%clk 0:02:55.4]} 14... Rc8 {[%clk 0:01:59.6]} 15. Bd3 {[%clk
0:02:55.3]} 15... Ndf6 {[%clk 0:01:53.9]} 16. Nd2 {[%clk 0:02:52.9]} 16... c5
{[%clk 0:01:43.5]} 17. Be5 {[%clk 0:02:47.8]} 17... cxd4 {[%clk 0:01:37.3]} 18.
Bxd4 {[%clk 0:02:47.4]} 18... e5 {[%clk 0:01:28.7]} 19. Bc3 {[%clk 0:02:43.4]}
19... Nxd2 {[%clk 0:01:08.8]} 20. Qxd2 {[%clk 0:02:34.7]} 20... dxc4 {[%clk
0:01:07.1]} 21. Bf5 {[%clk 0:02:34.3]} 21... Qxd2 {[%clk 0:01:04.4]} 22. Bxd2
{[%clk 0:02:35.2]} 22... Rcd8 {[%clk 0:01:02.2]} 23. Bc3 {[%clk 0:02:35.2]}
23... Ne4 {[%clk 0:00:59.5]} 24. Bb4 {[%clk 0:02:31.8]} 24... a5 {[%clk
0:00:54.1]} 25. Be1 {[%clk 0:02:31.6]} 25... Nd2 {[%clk 0:00:48.7]} 26. Bxd2
{[%clk 0:02:31.3]} 26... Rxd2 {[%clk 0:00:48.1]} 27. Rac1 {[%clk 0:02:32.2]}
27... Ba6 {[%clk 0:00:43.4]} 28. Rc2 {[%clk 0:02:18.5]} 28... Red8 {[%clk
0:00:40.4]} 29. h3 {[%clk 0:02:02.1]} 29... c3 {[%clk 0:00:29.9]} 30. Rb1 {[%clk
0:01:31.8]} 30... Rxc2 {[%clk 0:00:26.2]} 31. Bxc2 {[%clk 0:01:32.7]} 31... Rd2
{[%clk 0:00:25.9]} 32. bxc3 {[%clk 0:01:25.7]} 32... Rxc2 {[%clk 0:00:25.6]} 33.
Rxb6 {[%clk 0:01:25.6]} 33... Bd3 {[%clk 0:00:25.1]} 34. Rb8+ {[%clk 0:01:15]}
34... Kg7 {[%clk 0:00:24.1]} 35. Rc8 {[%clk 0:01:15.9]} 35... a4 {[%clk
0:00:23.4]} 36. Rc5 {[%clk 0:01:08.6]} 36... Ra2 {[%clk 0:00:22.9]} 37. Rxe5
{[%clk 0:01:04.6]} 37... Rxa3 {[%clk 0:00:23.3]} 38. Ra5 {[%clk 0:01:05.1]}
38... Ra1+ {[%clk 0:00:22.9]} 39. Kh2 {[%clk 0:01:05.5]} 39... a3 {[%clk
0:00:23.3]} 40. Kg3 {[%clk 0:01:04.8]} 40... a2 {[%clk 0:00:23.7]} 41. Ra4
{[%clk 0:01:02.1]} 41... Bf5 {[%clk 0:00:21.9]} 42. f3 {[%clk 0:00:58.1]} 42...
Be6 {[%clk 0:00:21.9]} 43. c4 {[%clk 0:00:58.3]} 43... Bxc4 {[%clk 0:00:20.5]}
44. Rxc4 {[%clk 0:00:58.7]} 44... Rb1 {[%clk 0:00:20.7]} 45. Ra4 {[%clk
0:00:58.9]} 45... a1=Q {[%clk 0:00:21.1]} 46. Rxa1 {[%clk 0:00:59.8]} 46... Rxa1
{[%clk 0:00:21.5]} 47. h4 {[%clk 0:01:00.4]} 47... Ra3 {[%clk 0:00:21.4]} 48.
hxg5 {[%clk 0:01:00.4]} 48... hxg5 {[%clk 0:00:21.5]} 49. Kg4 {[%clk 0:01:01.3]}
49... Kg6 {[%clk 0:00:21.6]} 50. g3 {[%clk 0:01:00.3]} 50... Rxe3 {[%clk
0:00:21.1]} 51. f4 {[%clk 0:01:00.4]} 51... gxf4 {[%clk 0:00:21.4]} 52. gxf4
{[%clk 0:01:01.3]} 52... f5+ {[%clk 0:00:21.5]} 53. Kh4 {[%clk 0:01:01.8]} 53...
Re4 {[%clk 0:00:21.6]} 54. Kg3 {[%clk 0:01:02]} 54... Kh5 {[%clk 0:00:22.2]} 55.
Kf3 {[%clk 0:01:02]} 55... Kh4 {[%clk 0:00:22.8]} 56. Kf2 {[%clk 0:01:02.3]}
56... Kg4 {[%clk 0:00:23.1]} 57. Kg2 {[%clk 0:01:03.2]} 57... Re3 {[%clk
0:00:23.2]} 58. Kf2 {[%clk 0:01:04.1]} 58... Kxf4 {[%clk 0:00:23.2]} 59. Kg2
{[%clk 0:01:05]} 59... Rf3 {[%clk 0:00:23.6]} 60. Kg1 {[%clk 0:01:05.3]} 60...
Kg3 {[%clk 0:00:23.5]} 61. Kh1 {[%clk 0:01:05.4]} 61... Rf1# {[%clk 0:00:24.1]}
0-1

[Event "*** SCC Grand Prix: Titled Tuesday Blitz"]
[Site "Chess.com"]
[Date "2020.09.29"]
[Round "1"]
[White "LiemLe"]
[Black "FedaMaster"]
[Result "1-0"]
[WhiteElo "2982"]
[BlackElo "2448"]
[TimeControl "180+1"]
[EndTime "10:07:00 PDT"]
[Termination "LiemLe won by checkmate"]

1. d4 {[%clk 0:02:59.4]} 1... f5 {[%clk 0:02:59]} 2. g3 {[%clk 0:02:59.1]} 2...
Nf6 {[%clk 0:02:59.3]} 3. Bg2 {[%clk 0:02:59.6]} 3... g6 {[%clk 0:02:59.9]} 4.
c3 {[%clk 0:02:58.4]} 4... Bg7 {[%clk 0:02:59.2]} 5. Qb3 {[%clk 0:02:59]} 5...
e6 {[%clk 0:02:58.5]} 6. Bxb7 {[%clk 0:02:57.5]} 6... Bxb7 {[%clk 0:02:57.9]} 7.
Qxb7 {[%clk 0:02:58.4]} 7... Nc6 {[%clk 0:02:57.3]} 8. Nf3 {[%clk 0:02:57.6]}
8... O-O {[%clk 0:02:49.8]} 9. O-O {[%clk 0:02:56.9]} 9... Ne4 {[%clk
0:02:49.3]} 10. Qa6 {[%clk 0:02:48.4]} 10... g5 {[%clk 0:02:43.8]} 11. Nbd2
{[%clk 0:02:44.3]} 11... g4 {[%clk 0:02:40]} 12. Nxe4 {[%clk 0:02:44.3]} 12...
fxe4 {[%clk 0:02:28.3]} 13. Ng5 {[%clk 0:02:41.6]} 13... e5 {[%clk 0:01:52.4]}
14. Qc4+ {[%clk 0:02:27.9]} 14... Kh8 {[%clk 0:01:48.7]} 15. d5 {[%clk
0:02:28.1]} 15... Ne7 {[%clk 0:01:41.1]} 16. Qxe4 {[%clk 0:02:27.9]} 16... Nf5
{[%clk 0:01:38.7]} 17. Qxg4 {[%clk 0:02:27.5]} 17... h6 {[%clk 0:01:38.1]} 18.
Qh5 {[%clk 0:02:17.2]} 18... Kg8 {[%clk 0:01:29.7]} 19. Ne4 {[%clk 0:02:17]}
19... c6 {[%clk 0:01:29.2]} 20. Rd1 {[%clk 0:02:06]} 20... Qa5 {[%clk
0:01:28.8]} 21. dxc6 {[%clk 0:01:50.3]} 21... d5 {[%clk 0:01:27.9]} 22. Nd2
{[%clk 0:01:45.4]} 22... e4 {[%clk 0:01:23.6]} 23. Nb3 {[%clk 0:01:35.5]} 23...
Qb6 {[%clk 0:01:22.7]} 24. Bf4 {[%clk 0:01:23.8]} 24... Qxc6 {[%clk 0:01:09.9]}
25. Rd2 {[%clk 0:01:23.9]} 25... a5 {[%clk 0:01:00.4]} 26. e3 {[%clk 0:01:14]}
26... a4 {[%clk 0:00:52.3]} 27. Nd4 {[%clk 0:01:14]} 27... Bxd4 {[%clk
0:00:47.5]} 28. cxd4 {[%clk 0:01:10.4]} 28... Rf7 {[%clk 0:00:45.9]} 29. g4
{[%clk 0:01:07.7]} 29... Ng7 {[%clk 0:00:43.6]} 30. Qxh6 {[%clk 0:01:06.7]}
30... Rf6 {[%clk 0:00:39.9]} 31. Qh4 {[%clk 0:01:05.2]} 31... Raf8 {[%clk
0:00:32.8]} 32. Be5 {[%clk 0:01:04.1]} 32... Rg6 {[%clk 0:00:32.6]} 33. f4
{[%clk 0:00:55]} 33... exf3 {[%clk 0:00:24]} 34. Rf1 {[%clk 0:00:55]} 34... Nf5
{[%clk 0:00:22.5]} 35. Qh8+ {[%clk 0:00:51.9]} 35... Kf7 {[%clk 0:00:22.1]} 36.
Qh5 {[%clk 0:00:52.4]} 36... Kg8 {[%clk 0:00:07.7]} 37. Rdf2 {[%clk 0:00:45.9]}
37... Nxe3 {[%clk 0:00:07.7]} 38. Qh8+ {[%clk 0:00:45.6]} 38... Kf7 {[%clk
0:00:07.8]} 39. Rxf3+ {[%clk 0:00:46.5]} 39... Ke6 {[%clk 0:00:08.1]} 40. Qxf8
{[%clk 0:00:37.6]} 40... Rxg4+ {[%clk 0:00:07.7]} 41. Kh1 {[%clk 0:00:36.2]}
41... Qd7 {[%clk 0:00:05.8]} 42. Qf6# {[%clk 0:00:35.5]} 1-0

[Event "*** SCC Grand Prix: Titled Tuesday Blitz"]
[Site "Chess.com"]
[Date "2020.09.29"]
[Round "1"]
[White "GianmarcoVaR"]
[Black "anon569"]
[Result "1-0"]
[WhiteElo "2557"]
[BlackElo "2235"]
[TimeControl "180+1"]
[EndTime "10:07:00 PDT"]
[Termination "GianmarcoVaR won on time"]

1. d4 {[%clk 0:02:57.7]} 1... Nf6 {[%clk 0:02:59.3]} 2. c4 {[%clk 0:02:57.7]}
2... e6 {[%clk 0:02:59.1]} 3. g3 {[%clk 0:02:56.6]} 3... Bb4+ {[%clk 0:02:58.4]}
4. Bd2 {[%clk 0:02:53.8]} 4... c5 {[%clk 0:02:58.5]} 5. Bxb4 {[%clk 0:02:52.5]}
5... cxb4 {[%clk 0:02:59.4]} 6. Bg2 {[%clk 0:02:52.1]} 6... O-O {[%clk
0:02:59.1]} 7. e4 {[%clk 0:02:50.7]} 7... d6 {[%clk 0:02:58.6]} 8. Ne2 {[%clk
0:02:50.1]} 8... Nc6 {[%clk 0:02:58]} 9. O-O {[%clk 0:02:48.5]} 9... e5 {[%clk
0:02:44.9]} 10. a3 {[%clk 0:02:48.5]} 10... bxa3 {[%clk 0:02:41.4]} 11. Rxa3
{[%clk 0:02:42.1]} 11... Qb6 {[%clk 0:02:32]} 12. Rb3 {[%clk 0:02:24.7]} 12...
Qc7 {[%clk 0:02:31]} 13. Qd3 {[%clk 0:01:45]} 13... b6 {[%clk 0:02:12.5]} 14.
Nd2 {[%clk 0:01:35.5]} 14... Bb7 {[%clk 0:01:54.8]} 15. Ra1 {[%clk 0:01:33]}
15... Rfd8 {[%clk 0:01:19.6]} 16. h3 {[%clk 0:01:32.7]} 16... Nd7 {[%clk
0:00:56.6]} 17. Qe3 {[%clk 0:01:06.2]} 17... Re8 {[%clk 0:00:31.5]} 18. Kh2
{[%clk 0:00:56.4]} 18... exd4 {[%clk 0:00:28.6]} 19. Nxd4 {[%clk 0:00:56.6]}
19... Nc5 {[%clk 0:00:29.1]} 20. Rc3 {[%clk 0:00:56]} 20... Nb4 {[%clk
0:00:09.6]} 21. Nf5 {[%clk 0:00:55.3]} 21... Ne6 {[%clk 0:00:05.8]} 22. Nf3
{[%clk 0:00:36.5]} 22... Qc5 {[%clk 0:00:05]} 23. Qxc5 {[%clk 0:00:30.7]} 23...
dxc5 {[%clk 0:00:04.5]} 24. Nd6 {[%clk 0:00:29.3]} 24... Re7 {[%clk 0:00:03.4]}
25. Ne5 {[%clk 0:00:12.4]} 1-0

[Event "*** SCC Grand Prix: Titled Tuesday Blitz"]
[Site "Chess.com"]
[Date "2020.09.29"]
[Round "1"]
[White "dianamirza"]
[Black "vanyakuba"]
[Result "0-1"]
[WhiteElo "1945"]
[BlackElo "2466"]
[TimeControl "180+1"]
[EndTime "10:07:02 PDT"]
[Termination "vanyakuba won on time"]

1. d4 {[%clk 0:02:55.1]} 1... d5 {[%clk 0:02:58]} 2. Nf3 {[%clk 0:02:54.9]} 2...
c5 {[%clk 0:02:57.9]} 3. e3 {[%clk 0:02:53.5]} 3... Nf6 {[%clk 0:02:57.7]} 4. b3
{[%clk 0:02:52.6]} 4... Nc6 {[%clk 0:02:55.9]} 5. Bd3 {[%clk 0:02:48.6]} 5...
Bg4 {[%clk 0:02:55.8]} 6. Bb2 {[%clk 0:02:39.8]} 6... e6 {[%clk 0:02:43.2]} 7.
a3 {[%clk 0:02:34.9]} 7... Bd6 {[%clk 0:02:42.5]} 8. Nbd2 {[%clk 0:02:34.7]}
8... O-O {[%clk 0:02:42]} 9. O-O {[%clk 0:02:32.4]} 9... e5 {[%clk 0:02:39.6]}
10. dxe5 {[%clk 0:02:18.4]} 10... Nxe5 {[%clk 0:02:30.1]} 11. Be2 {[%clk
0:02:03.5]} 11... Nc6 {[%clk 0:01:56.1]} 12. h3 {[%clk 0:01:58.6]} 12... Bf5
{[%clk 0:01:51.1]} 13. c4 {[%clk 0:01:44.9]} 13... Re8 {[%clk 0:01:39.2]} 14.
cxd5 {[%clk 0:01:43.7]} 14... Nxd5 {[%clk 0:01:39.4]} 15. Bc4 {[%clk 0:01:39.7]}
15... Nf6 {[%clk 0:01:24.6]} 16. Ng5 {[%clk 0:01:30.8]} 16... Bg6 {[%clk
0:01:24.7]} 17. f4 {[%clk 0:00:31.3]} 17... Qe7 {[%clk 0:00:53.5]} 18. Rf3
{[%clk 0:00:23.4]} 18... Na5 {[%clk 0:00:31.7]} 19. f5 {[%clk 0:00:22.1]} 19...
Bh5 {[%clk 0:00:31.6]} 20. g4 {[%clk 0:00:22.2]} 20... Nxc4 {[%clk 0:00:31.6]}
21. Nxc4 {[%clk 0:00:12.8]} 21... Rad8 {[%clk 0:00:27.2]} 22. gxh5 {[%clk
0:00:11.8]} 22... Bh2+ {[%clk 0:00:26]} 23. Kxh2 {[%clk 0:00:12.2]} 23... Rxd1
{[%clk 0:00:26.3]} 24. Rxd1 {[%clk 0:00:13.1]} 24... h6 {[%clk 0:00:21.1]} 25.
Nd6 {[%clk 0:00:03.8]} 25... hxg5 {[%clk 0:00:13.2]} 26. Nxe8 {[%clk 0:00:03.6]}
26... Qxe8 {[%clk 0:00:10.6]} 27. Bxf6 {[%clk 0:00:03.5]} 27... gxf6 {[%clk
0:00:10.2]} 28. Kg3 {[%clk 0:00:03.9]} 28... Qe5+ {[%clk 0:00:09.8]} 0-1

[Event "*** SCC Grand Prix: Titled Tuesday Blitz"]
[Site "Chess.com"]
[Date "2020.09.29"]
[Round "1"]
[White "Margarita2907"]
[Black "Susal_De_Silva"]
[Result "0-1"]
[WhiteElo "2182"]
[BlackElo "2525"]
[TimeControl "180+1"]
[EndTime "10:07:04 PDT"]
[Termination "Susal_De_Silva won by resignation"]

1. e4 {[%clk 0:02:58.7]} 1... e5 {[%clk 0:02:59.6]} 2. Nf3 {[%clk 0:02:57.9]}
2... d6 {[%clk 0:02:59.7]} 3. d4 {[%clk 0:02:54]} 3... exd4 {[%clk 0:03:00.6]}
4. Nxd4 {[%clk 0:02:53.1]} 4... Nf6 {[%clk 0:03:00.5]} 5. Nc3 {[%clk 0:02:51.3]}
5... Be7 {[%clk 0:03:00.5]} 6. Be2 {[%clk 0:02:49.9]} 6... O-O {[%clk
0:03:00.1]} 7. O-O {[%clk 0:02:49.9]} 7... Re8 {[%clk 0:02:59.8]} 8. Re1 {[%clk
0:02:35]} 8... c6 {[%clk 0:02:54.7]} 9. Bd3 {[%clk 0:02:32]} 9... h6 {[%clk
0:02:50.2]} 10. Nf5 {[%clk 0:02:27.9]} 10... Bxf5 {[%clk 0:02:46.6]} 11. exf5
{[%clk 0:02:28.8]} 11... d5 {[%clk 0:02:46.8]} 12. h3 {[%clk 0:02:08.5]} 12...
Nbd7 {[%clk 0:02:44.8]} 13. Bf4 {[%clk 0:02:04.4]} 13... Qb6 {[%clk 0:02:25.5]}
14. b3 {[%clk 0:01:52.8]} 14... Bc5 {[%clk 0:02:11.5]} 15. Qf3 {[%clk
0:01:42.1]} 15... Bd4 {[%clk 0:02:02.7]} 16. Na4 {[%clk 0:01:35.5]} 16... Qa5
{[%clk 0:02:02.6]} 17. Rxe8+ {[%clk 0:01:31.5]} 17... Rxe8 {[%clk 0:02:03.5]}
18. Rd1 {[%clk 0:01:29.4]} 18... b5 {[%clk 0:01:59.4]} 19. Bd2 {[%clk
0:01:24.8]} 19... Qc7 {[%clk 0:01:49]} 20. Nc3 {[%clk 0:01:22.3]} 20... Ne5
{[%clk 0:01:33.2]} 21. Qf4 {[%clk 0:01:09.2]} 21... Bc5 {[%clk 0:01:29.6]} 22.
Re1 {[%clk 0:00:49.4]} 22... Bd6 {[%clk 0:01:28.5]} 23. Qh4 {[%clk 0:00:41.9]}
23... b4 {[%clk 0:01:23.9]} 24. Ne2 {[%clk 0:00:37.6]} 24... Nxd3 {[%clk
0:01:01.7]} 25. cxd3 {[%clk 0:00:36.7]} 25... Be7 {[%clk 0:01:02.1]} 26. Bf4
{[%clk 0:00:32.8]} 26... Qa5 {[%clk 0:01:00.7]} 27. Nd4 {[%clk 0:00:25.3]} 27...
Qc5 {[%clk 0:00:56.6]} 28. Be5 {[%clk 0:00:16.4]} 28... Bd8 {[%clk 0:00:44]} 29.
Nf3 {[%clk 0:00:09.5]} 29... Ne4 {[%clk 0:00:31.5]} 30. Qg4 {[%clk 0:00:05.9]}
30... Qxf2+ {[%clk 0:00:29.7]} 31. Kh1 {[%clk 0:00:05]} 31... Nf6 {[%clk
0:00:29.8]} 32. Bxf6 {[%clk 0:00:04.1]} 32... Rxe1+ {[%clk 0:00:30.3]} 33. Nxe1
{[%clk 0:00:04.3]} 33... Qxe1+ {[%clk 0:00:31]} 34. Kh2 {[%clk 0:00:04.6]} 34...
Bxf6 {[%clk 0:00:31.3]} 35. Qf4 {[%clk 0:00:04]} 35... Be5 {[%clk 0:00:31.4]}
0-1

[Event "*** SCC Grand Prix: Titled Tuesday Blitz"]
[Site "Chess.com"]
[Date "2020.09.29"]
[Round "1"]
[White "FontVella8"]
[Black "RamyresCoelho"]
[Result "1-0"]
[WhiteElo "2475"]
[BlackElo "2001"]
[TimeControl "180+1"]
[EndTime "10:07:04 PDT"]
[Termination "FontVella8 won by resignation"]

1. e4 {[%clk 0:03:00.9]} 1... c5 {[%clk 0:02:59.8]} 2. Nf3 {[%clk 0:03:01.1]}
2... d6 {[%clk 0:02:59.9]} 3. d4 {[%clk 0:03:01.3]} 3... cxd4 {[%clk 0:03:00.8]}
4. Qxd4 {[%clk 0:03:02.1]} 4... Nf6 {[%clk 0:03:01.3]} 5. Be2 {[%clk 0:03:02.3]}
5... g6 {[%clk 0:02:58.7]} 6. O-O {[%clk 0:03:01.9]} 6... Bg7 {[%clk 0:02:59.2]}
7. Rd1 {[%clk 0:02:59.4]} 7... Nc6 {[%clk 0:02:58.3]} 8. Qe3 {[%clk 0:02:59]}
8... O-O {[%clk 0:02:58.3]} 9. h3 {[%clk 0:02:58.5]} 9... Qc7 {[%clk 0:02:56.4]}
10. c4 {[%clk 0:02:56.8]} 10... h6 {[%clk 0:02:54]} 11. Nc3 {[%clk 0:02:55.9]}
11... Ne5 {[%clk 0:02:54.2]} 12. Nd2 {[%clk 0:02:48.8]} 12... Be6 {[%clk
0:02:46.9]} 13. b3 {[%clk 0:02:48.3]} 13... Rad8 {[%clk 0:02:42.6]} 14. Bb2
{[%clk 0:02:48.3]} 14... a6 {[%clk 0:02:42.6]} 15. Rac1 {[%clk 0:02:47.8]} 15...
Kh7 {[%clk 0:02:37.3]} 16. f4 {[%clk 0:02:47.3]} 16... Nc6 {[%clk 0:02:29.3]}
17. Nf3 {[%clk 0:02:25.2]} 17... Nh5 {[%clk 0:02:23.1]} 18. Rd2 {[%clk
0:02:18.6]} 18... Ng3 {[%clk 0:02:21.6]} 19. Nd5 {[%clk 0:02:14.8]} 19... Nxe2+
{[%clk 0:02:20.9]} 20. Rxe2 {[%clk 0:02:14.6]} 20... Qb8 {[%clk 0:02:14.5]} 21.
Bxg7 {[%clk 0:02:12.9]} 21... Kxg7 {[%clk 0:02:15.4]} 22. f5 {[%clk 0:02:06.6]}
22... Bd7 {[%clk 0:02:05.6]} 23. Qf4 {[%clk 0:01:49.8]} 23... Qa7+ {[%clk
0:01:47.3]} 24. Kh1 {[%clk 0:01:48.6]} 24... Qc5 {[%clk 0:01:46.9]} 25. Nxe7
{[%clk 0:01:39.6]} 25... Nd4 {[%clk 0:01:32.3]} 26. f6+ {[%clk 0:01:35.3]} 26...
Kh7 {[%clk 0:01:28.8]} 27. Rd2 {[%clk 0:01:23.1]} 27... Nxf3 {[%clk 0:01:25.2]}
28. Qxf3 {[%clk 0:01:22.8]} 28... Qg5 {[%clk 0:01:23.6]} 29. Rcd1 {[%clk
0:01:21.2]} 29... b5 {[%clk 0:01:18.4]} 30. Rxd6 {[%clk 0:01:19.4]} 30... bxc4
{[%clk 0:01:17.5]} 31. Rxd7 {[%clk 0:01:17.9]} 31... Rxd7 {[%clk 0:01:14.2]} 32.
Rxd7 {[%clk 0:01:18.8]} 32... cxb3 {[%clk 0:01:15.1]} 33. axb3 {[%clk 0:01:17]}
33... Qc1+ {[%clk 0:01:15.1]} 34. Kh2 {[%clk 0:01:17.1]} 34... Qg5 {[%clk
0:01:09.8]} 35. Rd5 {[%clk 0:01:13.9]} 35... Qc1 {[%clk 0:01:06.5]} 36. h4
{[%clk 0:01:12.6]} 36... Qe1 {[%clk 0:01:04.7]} 37. Qg3 {[%clk 0:01:06.6]} 37...
Qxe4 {[%clk 0:01:03.1]} 38. Re5 {[%clk 0:01:06.8]} 38... Qb1 {[%clk 0:01:00]}
39. h5 {[%clk 0:01:04.8]} 39... g5 {[%clk 0:00:55.8]} 40. Rxg5 {[%clk
0:00:53.4]} 40... hxg5 {[%clk 0:00:52.7]} 41. Qxg5 {[%clk 0:00:54.3]} 41... Rg8
{[%clk 0:00:24.9]} 42. Qxg8+ {[%clk 0:00:53.6]} 42... Kh6 {[%clk 0:00:24.3]} 43.
Qg7+ {[%clk 0:00:42.7]} 43... Kxh5 {[%clk 0:00:24.5]} 44. g4+ {[%clk 0:00:43]}
44... Kh4 {[%clk 0:00:21.1]} 45. Nf5+ {[%clk 0:00:43.1]} 45... Qxf5 {[%clk
0:00:17.6]} 46. gxf5 {[%clk 0:00:44]} 1-0

[Event "*** SCC Grand Prix: Titled Tuesday Blitz"]
[Site "Chess.com"]
[Date "2020.09.29"]
[Round "1"]
[White "ljuks68"]
[Black "PavelShkapenko"]
[Result "0-1"]
[WhiteElo "2363"]
[BlackElo "2702"]
[TimeControl "180+1"]
[EndTime "10:07:06 PDT"]
[Termination "PavelShkapenko won by resignation"]

1. e4 {[%clk 0:02:58.1]} 1... e5 {[%clk 0:02:59.1]} 2. Nf3 {[%clk 0:02:57.6]}
2... Nc6 {[%clk 0:02:59.2]} 3. Bb5 {[%clk 0:02:57.5]} 3... Bc5 {[%clk
0:02:58.2]} 4. c3 {[%clk 0:02:55.9]} 4... Bb6 {[%clk 0:02:56.8]} 5. d4 {[%clk
0:02:55]} 5... Nf6 {[%clk 0:02:54.9]} 6. Bg5 {[%clk 0:02:41.1]} 6... h6 {[%clk
0:02:53.4]} 7. Bxf6 {[%clk 0:02:32.9]} 7... Qxf6 {[%clk 0:02:52.6]} 8. Bxc6
{[%clk 0:02:20.2]} 8... Qxc6 {[%clk 0:02:50.2]} 9. O-O {[%clk 0:02:17.4]} 9...
exd4 {[%clk 0:02:48.6]} 10. Nxd4 {[%clk 0:02:11.2]} 10... Qf6 {[%clk 0:02:42.6]}
11. e5 {[%clk 0:02:02.5]} 11... Qg6 {[%clk 0:02:37.1]} 12. f4 {[%clk 0:01:56.5]}
12... O-O {[%clk 0:02:36.9]} 13. f5 {[%clk 0:01:56.1]} 13... Qg5 {[%clk
0:02:33.7]} 14. Kh1 {[%clk 0:01:40.9]} 14... d6 {[%clk 0:02:32.5]} 15. exd6
{[%clk 0:01:40.1]} 15... cxd6 {[%clk 0:02:32.1]} 16. Qf3 {[%clk 0:01:17.5]}
16... Bd7 {[%clk 0:01:24.8]} 17. Qxb7 {[%clk 0:01:12.3]} 17... Rfd8 {[%clk
0:01:24.7]} 18. Qd5 {[%clk 0:01:08.4]} 18... Rab8 {[%clk 0:01:18.4]} 19. b4
{[%clk 0:00:59.6]} 19... Bxd4 {[%clk 0:01:15.6]} 20. Qxd4 {[%clk 0:00:35.2]}
20... Bxf5 {[%clk 0:01:12.4]} 21. Nd2 {[%clk 0:00:34.4]} 21... Qg6 {[%clk
0:01:04.3]} 22. Nb3 {[%clk 0:00:25.2]} 22... Be4 {[%clk 0:01:03.3]} 23. Qf2
{[%clk 0:00:21.3]} 23... Rb5 {[%clk 0:00:53.3]} 24. Nd4 {[%clk 0:00:20.8]} 24...
Rg5 {[%clk 0:00:52.7]} 25. Nf3 {[%clk 0:00:21.2]} 25... Rf5 {[%clk 0:00:50.7]}
26. Qe3 {[%clk 0:00:20.1]} 26... d5 {[%clk 0:00:47.3]} 27. Rf2 {[%clk
0:00:16.1]} 27... Qf6 {[%clk 0:00:46]} 28. Raf1 {[%clk 0:00:15]} 28... Rc8
{[%clk 0:00:46.1]} 29. Nd4 {[%clk 0:00:14.7]} 29... Rxf2 {[%clk 0:00:45.8]} 30.
Qxf2 {[%clk 0:00:14.6]} 30... Qxf2 {[%clk 0:00:45]} 31. Rxf2 {[%clk 0:00:14.7]}
31... Rxc3 {[%clk 0:00:45.5]} 32. h4 {[%clk 0:00:11.7]} 32... Rc4 {[%clk
0:00:41.3]} 33. Nf5 {[%clk 0:00:08.1]} 33... Bxf5 {[%clk 0:00:38.2]} 34. Rxf5
{[%clk 0:00:07.4]} 34... Rxh4+ {[%clk 0:00:38.7]} 35. Kg1 {[%clk 0:00:07.6]}
35... Rxb4 {[%clk 0:00:39.3]} 36. Rxd5 {[%clk 0:00:07.7]} 36... Ra4 {[%clk
0:00:39.9]} 37. Rd2 {[%clk 0:00:07.2]} 37... g5 {[%clk 0:00:39.9]} 38. Kf2
{[%clk 0:00:07.5]} 38... Kg7 {[%clk 0:00:40.1]} 39. g3 {[%clk 0:00:07.2]} 39...
f6 {[%clk 0:00:40.1]} 40. Kg2 {[%clk 0:00:07.7]} 40... Kg6 {[%clk 0:00:40.3]}
41. Kf2 {[%clk 0:00:08.2]} 41... h5 {[%clk 0:00:40.5]} 42. Kg2 {[%clk
0:00:08.7]} 42... h4 {[%clk 0:00:40.6]} 43. gxh4 {[%clk 0:00:08.3]} 43... Rxh4
{[%clk 0:00:40.5]} 0-1